bitfinex-derivatives/quotes_BNBF0:USTF0_20251225
["timestamp","ask_amount","ask_price","bid_price","bid_amount"]
[1766669969206,0.6829172,836.36,835.56,1.79182466]
[1766669969506,0.6829172,836.35,835.56,1.79182466]
[1766669969707,0.6829172,836.34,835.56,1.79182466]
[1766669969906,0.6829172,836.33,835.56,1.79182466]
[1766669970107,0.6829172,836.32,835.56,1.79182466]
[1766669970307,0.6829172,836.31,835.56,1.79182466]
[1766669970608,13.04755298,836.35,835.56,1.79182466]
[1766669970807,0.68288792,836.34,835.56,1.79182466]
[1766669971107,0.68288792,836.33,835.56,1.79182466]
[1766669971402,0.68288792,836.32,835.56,1.79182466]
[1766669971608,0.68288792,836.31,835.56,1.79182466]
[1766669971803,13.04755298,836.35,835.56,1.79182466]
[1766669972003,0.68288273,836.34,835.56,1.79182466]
[1766669972207,0.68288273,836.33,835.56,1.79182466]
[1766669972406,0.68288273,836.32,835.56,1.79182466]
[1766669972700,0.68288273,836.31,835.56,1.79182466]
[1766669972902,13.04755298,836.35,835.56,1.79182466]
[1766669973104,0.6828785,836.34,835.56,1.79182466]
[1766669973409,0.6828785,836.33,835.56,1.79182466]
[1766669973605,0.6828785,836.32,835.56,1.79182466]
[1766669973804,0.6828785,836.31,835.56,1.79182466]
[1766669974009,0.20809539,836.5,835.56,1.79182466]
[1766669974209,1.87876592,836.49,835.56,1.79182466]
[1766669974504,1.87876592,836.48,835.56,1.79182466]
[1766669974704,1.87876592,836.47,835.56,1.79182466]
[1766669974910,1.87876592,836.46,835.56,1.79182466]
[1766669975104,0.68238517,836.45,835.56,1.79182466]
[1766669975306,0.68238517,836.44,835.56,1.79182466]
[1766669975608,0.68238517,836.43,835.56,1.79182466]
[1766669975806,0.68238517,836.42,835.56,1.79182466]
[1766669976005,0.68238517,836.41,835.56,1.79182466]
[1766669976206,0.68238517,836.4,835.56,1.79182466]
[1766669976408,0.68238517,836.39,835.56,1.79182466]
[1766669976605,0.68238517,836.38,835.56,1.79182466]
[1766669976807,0.68238517,836.37,835.56,1.79182466]
[1766669977006,0.68238517,836.36,835.56,1.79182466]
[1766669977209,0.68238517,836.35,835.56,1.79182466]
[1766669977409,0.68238517,836.34,835.56,1.79182466]
[1766669977609,0.68238517,836.33,835.56,1.79182466]
[1766669977804,0.68238517,836.32,835.56,1.79182466]
[1766669978009,0.68238517,836.31,835.56,1.79182466]
[1766669978210,0.20809539,836.5,835.56,1.79182466]
[1766669978413,1.87876077,836.49,835.56,1.79182466]
[1766669978706,1.87876077,836.48,835.56,1.79182466]
[1766669978909,0.20809539,836.5,835.56,1.79182466]
[1766669978910,1.87876077,836.47,835.56,1.79182466]
[1766669979108,1.87876077,836.46,835.56,1.79182466]
[1766669979316,0.68237903,836.45,835.56,1.79182466]
[1766669979512,0.68237903,836.44,835.56,1.79182466]
[1766669979812,0.68237903,836.43,835.56,1.79182466]
[1766669980012,0.68237903,836.42,835.56,1.79182466]
[1766669980211,0.68237903,836.41,835.56,1.79182466]
[1766669980412,0.68237903,836.4,835.56,1.79182466]
[1766669980612,0.20809539,836.5,835.56,1.79182466]
[1766669980613,0.68237903,836.39,835.56,1.79182466]
[1766669980915,0.68237903,836.38,835.56,1.79182466]
[1766669981116,0.68237903,836.37,835.56,1.79182466]
[1766669981316,0.68237903,836.36,835.56,1.79182466]
[1766669981514,0.68237903,836.35,835.56,1.79182466]
[1766669981714,0.68237903,836.34,835.56,1.79182466]
[1766669981913,0.68237903,836.33,835.56,1.79182466]
[1766669982112,0.20809539,836.5,835.59,1.79182466]
[1766669982413,1.87875027,836.49,835.59,1.79182466]
[1766669982612,1.87875027,836.48,835.59,1.79182466]
[1766669982816,0.68240739,836.47,835.59,1.79182466]
[1766669983017,0.68240739,836.46,835.59,1.79182466]
[1766669983315,0.20809539,836.5,835.59,1.79182466]
[1766669983316,0.68240739,836.45,835.59,1.79182466]
[1766669983514,0.68240739,836.44,835.59,10.65868528]
[1766669983816,0.68240739,836.43,835.59,10.65868528]
[1766669984014,0.68240739,836.42,835.59,10.65868528]
[1766669984213,0.68240739,836.41,835.59,10.65868528]
[1766669984417,0.68240739,836.4,835.59,10.65868528]
[1766669984618,0.68240739,836.39,835.59,10.65868528]
[1766669984915,0.68240739,836.38,835.59,10.65868528]
[1766669985118,0.68240739,836.37,835.59,10.65868528]
[1766669985319,0.68240739,836.36,835.59,8.86686062]
[1766669985615,0.68240739,836.35,835.59,8.86686062]
[1766669985819,0.68240739,836.34,835.59,8.86686062]
[1766669986014,12.89164774,836.46,835.59,8.86686062]
[1766669986215,0.68231138,836.45,835.59,8.86686062]
[1766669986417,0.68231138,836.44,835.59,8.86686062]
[1766669986617,0.68231138,836.43,835.59,8.86686062]
[1766669986816,0.68231138,836.42,835.59,8.86686062]
[1766669987015,0.68231138,836.41,835.58,1.79182466]
[1766669987219,0.68231138,836.4,835.58,1.79182466]
[1766669987418,0.68231138,836.39,835.58,1.79182466]
[1766669987619,0.68231138,836.38,835.58,1.79182466]
[1766669987819,0.20809539,836.5,835.58,1.79182466]
[1766669987820,0.68231138,836.37,835.58,1.79182466]
[1766669988022,0.68231138,836.36,835.58,1.79182466]
[1766669988221,0.68231138,836.35,835.58,1.79182466]
[1766669988419,0.68231138,836.34,835.58,1.79182466]
[1766669988625,0.20809539,836.5,835.58,1.79182466]
[1766669988820,1.87862099,836.49,835.58,1.79182466]
[1766669989119,0.682278,836.48,835.58,1.79182466]
[1766669989323,0.682278,836.47,835.58,1.79182466]
[1766669989619,0.682278,836.46,835.58,1.79182466]
[1766669989823,0.682278,836.45,835.58,1.79182466]
[1766669990021,0.682278,836.44,835.58,1.79182466]
[1766669990322,0.682278,836.43,835.58,1.79182466]
[1766669990525,0.682278,836.42,835.58,1.79182466]
[1766669990724,0.20809539,836.5,835.58,1.79182466]
[1766669990725,0.682278,836.41,835.58,1.79182466]
[1766669991021,0.682278,836.4,835.58,1.79182466]
[1766669991225,0.682278,836.39,835.58,1.79182466]
[1766669991523,0.682278,836.38,835.58,1.79182466]
[1766669991722,0.682278,836.37,835.58,1.79182466]
[1766669992026,0.682278,836.36,835.58,1.79182466]
[1766669992322,0.682278,836.35,835.58,1.79182466]
[1766669992522,0.682278,836.34,835.58,1.79182466]
[1766669992726,13.00844945,836.41,835.58,1.79182466]
[1766669992923,0.68226477,836.4,835.58,1.79182466]
[1766669993227,0.68226477,836.39,835.58,1.79182466]
[1766669993427,0.68226477,836.38,835.58,1.79182466]
[1766669993728,0.68226477,836.37,835.58,1.79182466]
[1766669994024,0.68226477,836.36,835.58,1.79182466]
[1766669994227,0.68226477,836.35,835.58,1.79182466]
[1766669994424,0.68226477,836.34,835.58,1.79182466]
[1766669994624,0.20809539,836.5,835.58,1.79182466]
[1766669994824,1.87860593,836.49,835.58,1.79182466]
[1766669995023,0.68226294,836.48,835.58,1.79182466]
[1766669995228,0.68226294,836.47,835.58,1.79182466]
[1766669995426,0.68226294,836.46,835.58,1.79182466]
[1766669995631,0.68226294,836.45,835.58,1.79182466]
[1766669995830,0.68226294,836.44,835.58,1.79182466]
[1766669996025,0.68226294,836.43,835.58,1.79182466]
[1766669996230,0.68226294,836.42,835.58,1.79182466]
[1766669996428,0.68226294,836.41,835.58,1.79182466]
[1766669996728,0.68226294,836.4,835.58,1.79182466]
[1766669996928,0.20809539,836.5,835.58,1.79182466]
[1766669996929,0.68226294,836.39,835.58,1.79182466]
[1766669997132,0.68226294,836.38,835.58,1.79182466]
[1766669997330,0.68226294,836.37,835.58,1.79182466]
[1766669997529,0.68226294,836.36,835.58,1.79182466]
[1766669997829,0.68226294,836.35,835.58,1.79182466]
[1766669998133,0.68226294,836.34,835.58,1.79182466]
[1766669998329,13.26122992,836.35,835.58,1.79182466]
[1766669998530,0.68250673,836.34,835.58,1.79182466]
[1766669998731,13.26122992,836.35,835.58,1.79182466]
[1766669999031,0.68250673,836.34,835.58,1.79182466]
[1766669999231,13.26122992,836.35,835.58,1.79182466]
[1766669999435,0.6825097,836.34,835.58,1.79182466]
[1766669999632,13.26122992,836.35,835.58,1.79182466]
[1766669999834,0.6825097,836.34,835.58,1.79182466]
[1766670000032,13.26122992,836.35,835.58,1.79182466]
[1766670000232,0.6825098,836.34,835.58,1.79182466]
[1766670000431,13.26122992,836.35,835.58,1.79182466]
[1766670000630,0.68251533,836.34,835.58,1.79182466]
[1766670000833,13.26122992,836.35,835.58,1.79182466]
[1766670001032,0.68251533,836.34,835.58,1.79182466]
[1766670001332,0.20809539,836.5,835.58,1.79182466]
[1766670001536,1.87886399,836.49,835.58,1.79182466]
[1766670001738,0.68252069,836.48,835.6,1.79182466]
[1766670001938,0.68252069,836.47,835.6,1.79182466]
[1766670002233,0.68252069,836.46,835.6,1.79182466]
[1766670002437,0.68252069,836.45,835.6,1.79182466]
[1766670002736,0.68252069,836.44,835.6,1.79182466]
[1766670002934,0.68252069,836.43,835.6,1.79182466]
[1766670003137,0.68252069,836.42,835.6,1.79182466]
[1766670003340,0.20809539,836.5,835.6,1.79182466]
[1766670003534,0.20809539,836.5,835.76,1.19561937]
[1766670003833,0.20809539,836.5,835.76,10.18203434]
[1766670007638,0.20809539,836.5,835.76,1.19561937]
[1766670021651,0.89500617,836.64,835.76,1.19561937]
[1766670021852,0.20804749,836.6,835.76,1.19561937]
[1766670022150,1.19631264,836.59,835.76,1.19561937]
[1766670022352,1.19631264,836.58,835.76,1.19561937]
[1766670022551,1.19631264,836.57,835.76,1.19561937]
[1766670022850,1.19631264,836.56,835.76,1.19561937]
[1766670023051,1.19631264,836.55,835.76,1.19561937]
[1766670023251,1.19631264,836.54,835.76,1.19561937]
[1766670023452,1.19631264,836.53,835.76,1.19561937]
[1766670023654,1.19631264,836.52,835.76,1.19561937]
[1766670023952,0.20804749,836.6,835.76,1.19561937]
[1766670024150,1.19631264,836.59,835.76,1.19561937]
[1766670024350,1.19631264,836.58,835.76,1.19561937]
[1766670024551,1.19631264,836.57,835.76,1.19561937]
[1766670024750,1.19631264,836.56,835.76,1.19561937]
[1766670025055,1.19631264,836.55,835.76,1.19561937]
[1766670025250,1.19631264,836.54,835.76,1.19561937]
[1766670025455,1.19631264,836.53,835.77,1.19561937]
[1766670025656,13.18619899,836.55,835.77,1.19561937]
[1766670025857,1.19630202,836.54,835.77,1.19561937]
[1766670026152,1.19630202,836.53,835.77,1.19561937]
[1766670026455,13.18619899,836.55,835.77,1.19561937]
[1766670026655,1.19630202,836.54,835.77,1.19561937]
[1766670026853,1.19630202,836.53,835.77,1.19561937]
[1766670027056,13.18619899,836.55,835.77,1.19561937]
[1766670027356,1.19630202,836.54,835.77,1.19561937]
[1766670027652,1.19630202,836.53,835.77,1.19561937]
[1766670027856,13.18619899,836.55,835.77,1.19561937]
[1766670028155,1.19630202,836.54,835.77,1.19561937]
[1766670028353,1.19630202,836.53,835.77,1.19561937]
[1766670028558,0.20804749,836.6,835.77,1.19561937]
[1766670028753,1.19630213,836.59,835.77,1.19561937]
[1766670028954,1.19630213,836.58,835.77,1.19561937]
[1766670029257,1.19630213,836.57,835.77,1.19561937]
[1766670029457,1.19630213,836.56,835.77,1.19561937]
[1766670029658,1.19630213,836.55,835.77,1.19561937]
[1766670029857,1.19630213,836.54,835.77,1.19561937]
[1766670030059,1.19630213,836.53,835.77,1.19561937]
[1766670030254,0.20804749,836.6,835.77,1.19561937]
[1766670030457,1.19630213,836.59,835.77,1.19561937]
[1766670030755,1.19630213,836.58,835.77,1.19561937]
[1766670030954,1.19630213,836.57,835.77,1.19561937]
[1766670031159,1.19630213,836.56,835.77,1.19561937]
[1766670031458,1.19630213,836.55,835.77,1.19561937]
[1766670031655,1.19630213,836.54,835.77,1.19561937]
[1766670031860,1.19630213,836.53,835.77,1.19561937]
[1766670032060,0.20804749,836.6,835.77,1.19561937]
[1766670032260,1.19630213,836.59,835.77,1.19561937]
[1766670032461,1.19630213,836.58,835.77,1.19561937]
[1766670032657,1.19630213,836.57,835.77,1.19561937]
[1766670032861,1.19630213,836.56,835.77,1.19561937]
[1766670033059,1.19630213,836.55,835.77,1.19561937]
[1766670033258,1.19630213,836.54,835.77,1.19561937]
[1766670033560,1.19630213,836.54,835.62,1.79182466]
[1766670033561,1.87815561,836.53,835.62,1.79182466]
[1766670033762,0.68185348,836.52,835.62,1.79182466]
[1766670034062,0.68185348,836.51,835.62,1.79182466]
[1766670034261,0.68185348,836.5,835.62,1.79182466]
[1766670034461,0.68185348,836.49,835.62,1.79182466]
[1766670034662,0.68185348,836.48,835.62,1.79182466]
[1766670034857,0.68185348,836.47,835.62,1.79182466]
[1766670035057,0.68185348,836.46,835.62,1.79182466]
[1766670035261,0.68185348,836.45,835.62,1.79182466]
[1766670035458,0.68185348,836.44,835.62,1.79182466]
[1766670035663,0.68185348,836.43,835.62,1.79182466]
[1766670035963,0.68185348,836.42,835.62,1.79182466]
[1766670036163,0.68185348,836.41,835.62,1.79182466]
[1766670036364,0.68185348,836.4,835.62,1.79182466]
[1766670036659,0.68185348,836.39,835.62,1.79182466]
[1766670036864,0.68185348,836.38,835.62,1.79182466]
[1766670037059,0.68185348,836.37,835.62,1.79182466]
[1766670037259,0.20804749,836.6,835.62,1.79182466]
[1766670037465,1.87818027,836.59,835.62,1.79182466]
[1766670037661,1.87818027,836.58,835.62,1.79182466]
[1766670037864,1.87818027,836.57,835.62,1.79182466]
[1766670038062,1.87818027,836.56,835.62,1.79182466]
[1766670038264,1.87818027,836.55,835.62,1.79182466]
[1766670038459,1.87818027,836.54,835.62,1.79182466]
[1766670038665,1.87818027,836.53,835.62,1.79182466]
[1766670038960,0.68187793,836.52,835.62,1.79182466]
[1766670039263,0.68187793,836.51,835.62,1.79182466]
[1766670039460,0.68187793,836.5,835.62,1.79182466]
[1766670039662,0.68187793,836.49,835.62,1.79182466]
[1766670039964,0.20804749,836.6,835.62,1.79182466]
[1766670039965,0.68187793,836.48,835.62,1.79182466]
[1766670040165,0.68187793,836.47,835.62,1.79182466]
[1766670040365,0.68187793,836.46,835.62,1.79182466]
[1766670040565,0.68187793,836.45,835.62,1.79182466]
[1766670040763,0.68187793,836.44,835.62,1.79182466]
[1766670040963,0.68187793,836.43,835.62,1.79182466]
[1766670041166,0.68187793,836.42,835.62,1.79182466]
[1766670041366,0.68187793,836.41,835.62,1.79182466]
[1766670041662,0.68187793,836.4,835.62,1.79182466]
[1766670041965,0.68187793,836.39,835.62,1.79182466]
[1766670042167,0.68187793,836.38,835.62,1.79182466]
[1766670042367,0.68187793,836.37,835.62,1.79182466]
[1766670042571,0.68187793,836.36,835.62,1.79182466]
[1766670042767,0.20804749,836.6,835.62,1.79182466]
[1766670042971,1.87824596,836.59,835.62,1.79182466]
[1766670043171,1.87824596,836.58,835.62,1.79182466]
[1766670043467,1.87824596,836.57,835.62,1.79182466]
[1766670043671,1.87824596,836.56,835.62,1.79182466]
[1766670043971,1.87824596,836.55,835.62,1.79182466]
[1766670044168,1.87824596,836.54,835.62,1.79182466]
[1766670044367,1.87824596,836.53,835.63,1.79182466]
[1766670044572,1.87824596,836.52,835.63,1.79182466]
[1766670044772,0.68194288,836.51,835.63,1.79182466]
[1766670045072,0.68194288,836.5,835.63,1.79182466]
[1766670045368,0.68194288,836.49,835.63,1.79182466]
[1766670045671,0.68194288,836.48,835.63,1.79182466]
[1766670045873,0.68194288,836.47,835.63,1.79182466]
[1766670046172,0.68194288,836.46,835.63,1.79182466]
[1766670046373,0.68194288,836.45,835.63,1.79182466]
[1766670046574,0.68194288,836.44,835.63,1.79182466]
[1766670046872,0.68194288,836.43,835.63,1.79182466]
[1766670047069,0.68194288,836.42,835.63,1.79182466]
[1766670047370,0.68194288,836.41,835.63,1.79182466]
[1766670047669,0.68194288,836.4,835.63,1.79182466]
[1766670047973,0.68194288,836.39,835.63,1.79182466]
[1766670048273,0.68194288,836.38,835.63,1.79182466]
[1766670048471,0.68194288,836.37,835.63,1.79182466]
[1766670048671,0.68194288,836.36,835.63,1.79182466]
[1766670048871,0.20804749,836.6,835.63,1.79182466]
[1766670049072,1.87829632,836.59,835.63,1.79182466]
[1766670049270,1.87829632,836.58,835.63,1.79182466]
[1766670049471,1.87829632,836.57,835.63,1.79182466]
[1766670049673,1.87829632,836.56,835.63,1.79182466]
[1766670049871,1.87829632,836.55,835.63,1.79182466]
[1766670050169,1.87829632,836.54,835.63,1.79182466]
[1766670050374,1.87829632,836.53,835.63,1.79182466]
[1766670050572,1.87829632,836.52,835.63,1.79182466]
[1766670050776,0.68199324,836.51,835.63,1.79182466]
[1766670050977,0.68199324,836.5,835.63,1.79182466]
[1766670051173,0.68199324,836.49,835.63,1.79182466]
[1766670051378,0.68199324,836.48,835.63,1.79182466]
[1766670051575,0.68199324,836.47,835.63,1.79182466]
[1766670051775,0.68199324,836.46,835.63,1.79182466]
[1766670051980,0.68199324,836.45,835.63,1.79182466]
[1766670052175,0.68199324,836.44,835.63,1.79182466]
[1766670052476,0.68199324,836.43,835.63,1.79182466]
[1766670052676,0.68199324,836.42,835.63,1.79182466]
[1766670052875,0.68199324,836.41,835.63,1.79182466]
[1766670053076,0.68199324,836.4,835.63,1.79182466]
[1766670053381,0.68199324,836.39,835.63,1.79182466]
[1766670053580,0.68199324,836.38,835.63,1.79182466]
[1766670053877,0.68199324,836.37,835.63,1.79182466]
[1766670054175,0.68199324,836.36,835.63,1.79182466]
[1766670054375,0.20804749,836.6,835.63,1.79182466]
[1766670054579,1.87826586,836.59,835.63,1.79182466]
[1766670054780,1.87826586,836.58,835.63,1.79182466]
[1766670054981,1.87826586,836.57,835.63,1.79182466]
[1766670055180,1.87826586,836.56,835.63,1.79182466]
[1766670055377,1.87826586,836.55,835.63,1.79182466]
[1766670055578,1.87826586,836.54,835.63,1.79182466]
[1766670055778,1.87826586,836.53,835.63,1.79182466]
[1766670055978,1.87826586,836.52,835.63,1.79182466]
[1766670056178,0.68196278,836.51,835.63,1.79182466]
[1766670056377,0.68196278,836.5,835.63,1.79182466]
[1766670056678,0.68196278,836.49,835.63,1.79182466]
[1766670056879,0.68196278,836.48,835.63,1.79182466]
[1766670057077,0.68196278,836.47,835.63,1.79182466]
[1766670057381,0.68196278,836.46,835.63,1.79182466]
[1766670057581,0.68196278,836.45,835.63,1.79182466]
[1766670057779,0.68196278,836.44,835.63,1.79182466]
[1766670057977,0.68196278,836.43,835.63,1.79182466]
[1766670058176,0.68196278,836.42,835.63,1.79182466]
[1766670058381,0.68196278,836.41,835.63,1.79182466]
[1766670058582,0.68196278,836.4,835.63,1.79182466]
[1766670058782,0.68196278,836.39,835.63,1.79182466]
[1766670058982,0.68196278,836.38,835.63,1.79182466]
[1766670059183,0.68196278,836.37,835.63,1.79182466]
[1766670059382,0.68196278,836.36,835.63,1.79182466]
[1766670059579,12.92477487,836.45,835.63,1.79182466]
[1766670059880,12.92477487,836.45,835.61,1.79182466]
[1766670059881,0.6819614,836.44,835.61,1.79182466]
[1766670060085,0.6819614,836.43,835.61,1.79182466]
[1766670060284,0.6819614,836.42,835.61,1.79182466]
[1766670060480,0.6819614,836.41,835.61,1.79182466]
[1766670060781,0.6819614,836.4,835.61,1.79182466]
[1766670060981,0.6819614,836.39,835.61,1.79182466]
[1766670061184,0.6819614,836.38,835.61,1.79182466]
[1766670061384,0.6819614,836.37,835.61,1.79182466]
[1766670061581,0.6819614,836.36,835.61,1.79182466]
[1766670061785,0.6819614,836.35,835.61,1.79182466]
[1766670061985,0.6819614,836.34,835.61,1.79182466]
[1766670062285,0.20804749,836.6,835.61,1.79182466]
[1766670062482,1.87823389,836.59,835.61,1.79182466]
[1766670062784,1.87823389,836.58,835.61,1.79182466]
[1766670062982,1.87823389,836.57,835.61,1.79182466]
[1766670063180,1.87823389,836.56,835.61,1.79182466]
[1766670063380,1.87823389,836.55,835.61,1.79182466]
[1766670063583,1.87823389,836.54,835.61,1.79182466]
[1766670063781,1.87823389,836.53,835.61,1.79182466]
[1766670063981,1.87823389,836.52,835.61,1.79182466]
[1766670064182,1.87823389,836.51,835.61,1.79182466]
[1766670064480,1.87823389,836.5,835.61,1.79182466]
[1766670064682,0.68190915,836.49,835.61,1.79182466]
[1766670064887,0.68190915,836.48,835.61,1.79182466]
[1766670065086,0.68190915,836.47,835.61,1.79182466]
[1766670065284,0.68190915,836.46,835.61,1.79182466]
[1766670065483,0.68190915,836.45,835.61,1.79182466]
[1766670065687,0.68190915,836.44,835.61,1.79182466]
[1766670065985,0.68190915,836.43,835.61,1.79182466]
[1766670066183,0.68190915,836.42,835.61,1.79182466]
[1766670066383,0.68190915,836.41,835.61,1.79182466]
[1766670066685,0.68190915,836.4,835.61,1.79182466]
[1766670066887,0.68190915,836.39,835.61,1.79182466]
[1766670067087,13.18989545,836.5,835.61,1.79182466]
[1766670067088,0.68190915,836.38,835.61,1.79182466]
[1766670067285,0.68190915,836.37,835.61,1.79182466]
[1766670067590,0.68190915,836.36,835.61,1.79182466]
[1766670067784,0.68190915,836.35,835.61,1.79182466]
[1766670067986,0.20804749,836.6,835.61,1.79182466]
[1766670068187,1.87796424,836.59,835.61,1.79182466]
[1766670068388,1.87796424,836.58,835.61,1.79182466]
[1766670068587,0.20804749,836.6,835.61,1.79182466]
[1766670068588,1.87796424,836.57,835.61,1.79182466]
[1766670068889,1.87796424,836.56,835.61,1.79182466]
[1766670069085,1.87796424,836.55,835.61,1.79182466]
[1766670069288,1.87796424,836.54,835.61,1.79182466]
[1766670069491,1.87796424,836.53,835.61,1.79182466]
[1766670069691,1.87796424,836.52,835.61,1.79182466]
[1766670069988,1.87796424,836.51,835.61,1.79182466]
[1766670070192,0.68163961,836.5,835.61,1.79182466]
[1766670070387,0.68163961,836.49,835.61,1.79182466]
[1766670070591,0.68163961,836.48,835.61,1.79182466]
[1766670070791,0.68163961,836.47,835.61,1.79182466]
[1766670070991,0.68163961,836.46,835.61,1.79182466]
[1766670071191,0.68163961,836.45,835.61,1.79182466]
[1766670071392,0.68163961,836.44,835.61,1.79182466]
[1766670071588,13.17146962,836.45,835.61,1.79182466]
[1766670071589,0.68163961,836.43,835.61,1.79182466]
[1766670071790,0.68163961,836.42,835.61,1.79182466]
[1766670072092,0.68163961,836.41,835.61,1.79182466]
[1766670072291,0.68163961,836.4,835.61,1.79182466]
[1766670072492,0.68163961,836.39,835.61,1.79182466]
[1766670072792,0.68163961,836.38,835.61,1.79182466]
[1766670072991,0.68163961,836.37,835.61,1.79182466]
[1766670073191,0.68163961,836.36,835.61,1.79182466]
[1766670073394,0.68163961,836.35,835.61,1.79182466]
[1766670073596,13.17146962,836.45,835.61,1.79182466]
[1766670073896,0.68159809,836.44,835.61,1.79182466]
[1766670074094,0.68159809,836.43,835.61,1.79182466]
[1766670074297,0.68159809,836.42,835.61,1.79182466]
[1766670074495,0.68159809,836.41,835.61,1.79182466]
[1766670074701,0.68159809,836.4,835.61,1.79182466]
[1766670074996,0.68159809,836.39,835.61,1.79182466]
[1766670075198,0.68159809,836.38,835.61,1.79182466]
[1766670075399,0.68159809,836.37,835.61,1.79182466]
[1766670075598,0.68159809,836.36,835.61,1.79182466]
[1766670075899,0.68159809,836.35,835.61,1.79182466]
[1766670076096,0.20804749,836.6,835.61,1.79182466]
[1766670076300,1.87791744,836.59,835.61,1.79182466]
[1766670076498,1.87791744,836.58,835.61,1.79182466]
[1766670076700,1.87791744,836.57,835.61,1.79182466]
[1766670076897,1.87791744,836.56,835.61,1.79182466]
[1766670077201,1.87791744,836.55,835.61,1.79182466]
[1766670077497,1.87791744,836.54,835.61,1.79182466]
[1766670077702,1.87791744,836.53,835.61,1.79182466]
[1766670077902,1.87791744,836.52,835.61,1.79182466]
[1766670078102,1.87791744,836.51,835.61,1.79182466]
[1766670078399,0.68159186,836.5,835.61,1.79182466]
[1766670078602,0.68159186,836.49,835.61,1.79182466]
[1766670078803,0.68159186,836.48,835.61,1.79182466]
[1766670079097,0.68159186,836.47,835.61,1.79182466]
[1766670079297,0.68159186,836.46,835.61,1.79182466]
[1766670079501,0.68159186,836.45,835.61,1.79182466]
[1766670079700,0.68159186,836.44,835.61,1.79182466]
[1766670079903,0.68159186,836.43,835.61,1.79182466]
[1766670080103,0.68159186,836.42,835.61,1.79182466]
[1766670080300,0.68159186,836.41,835.61,1.79182466]
[1766670080600,0.68159186,836.4,835.61,1.79182466]
[1766670080804,0.68159186,836.39,835.61,1.79182466]
[1766670081004,0.68159186,836.38,835.61,1.79182466]
[1766670081204,0.68159186,836.37,835.61,1.79182466]
[1766670081404,0.68159186,836.36,835.61,1.79182466]
[1766670081704,0.68159186,836.35,835.61,1.79182466]
[1766670081999,0.20804749,836.6,835.61,1.79182466]
[1766670082204,1.87787391,836.59,835.61,1.79182466]
[1766670082503,1.87787391,836.58,835.61,1.79182466]
[1766670082699,1.87787391,836.57,835.61,1.79182466]
[1766670082901,1.87787391,836.56,835.61,1.79182466]
[1766670083100,1.87787391,836.55,835.61,1.79182466]
[1766670083299,0.20804749,836.6,835.61,1.79182466]
[1766670083300,1.87787391,836.54,835.61,1.79182466]
[1766670083506,1.87787391,836.53,835.61,1.79182466]
[1766670083705,1.87787391,836.52,835.61,1.79182466]
[1766670084001,1.87787391,836.51,835.61,1.79182466]
[1766670084308,0.68154812,836.5,835.61,1.79182466]
[1766670084601,0.68154812,836.49,835.61,1.79182466]
[1766670084802,0.68154812,836.48,835.61,1.79182466]
[1766670085003,0.68154812,836.47,835.61,1.79182466]
[1766670085206,0.68154812,836.46,835.61,1.79182466]
[1766670085405,0.68154812,836.45,835.61,1.79182466]
[1766670085705,0.68154812,836.44,835.61,1.79182466]
[1766670085906,0.68154812,836.43,835.61,1.79182466]
[1766670086102,0.68154812,836.42,835.61,1.79182466]
[1766670086306,0.68154812,836.41,835.61,1.79182466]
[1766670086606,0.68154812,836.4,835.61,1.79182466]
[1766670086902,0.68154812,836.39,835.61,1.79182466]
[1766670087106,0.68154812,836.38,835.61,1.79182466]
[1766670087306,0.68154812,836.37,835.61,1.79182466]
[1766670087503,0.68154812,836.36,835.61,1.79182466]
[1766670087707,0.68154812,836.35,835.61,1.79182466]
[1766670087907,13.25266309,836.46,835.61,1.79182466]
[1766670088108,0.68155311,836.45,835.61,1.79182466]
[1766670088405,0.68155311,836.44,835.61,1.79182466]
[1766670088605,0.68155311,836.43,835.61,1.79182466]
[1766670088806,0.68155311,836.42,835.61,1.79182466]
[1766670089106,0.68155311,836.41,835.61,1.79182466]
[1766670089406,0.68155311,836.4,835.61,1.79182466]
[1766670089606,0.68155311,836.39,835.61,1.79182466]
[1766670089905,0.68155311,836.38,835.61,1.79182466]
[1766670090104,0.68155311,836.37,835.61,1.79182466]
[1766670090304,0.68155311,836.36,835.61,1.79182466]
[1766670090503,0.68155311,836.35,835.61,1.79182466]
[1766670090704,0.20804749,836.6,835.61,1.79182466]
[1766670090905,1.87788642,836.59,835.61,1.79182466]
[1766670091106,1.87788642,836.58,835.61,1.79182466]
[1766670091407,1.87788642,836.57,835.61,1.79182466]
[1766670091610,1.87788642,836.56,835.61,1.79182466]
[1766670091910,1.87788642,836.55,835.61,1.79182466]
[1766670092107,1.87788642,836.54,835.61,1.79182466]
[1766670092308,1.87788642,836.53,835.61,1.79182466]
[1766670092511,1.87788642,836.52,835.61,1.79182466]
[1766670092711,1.87788642,836.51,835.61,1.79182466]
[1766670092911,0.68156063,836.5,835.61,1.79182466]
[1766670093207,0.68156063,836.49,835.61,1.79182466]
[1766670093512,0.68156063,836.48,835.61,1.79182466]
[1766670093708,0.68156063,836.47,835.61,1.79182466]
[1766670093907,0.68156063,836.46,835.61,1.79182466]
[1766670094111,0.68156063,836.45,835.61,1.79182466]
[1766670094410,0.68156063,836.44,835.61,1.79182466]
[1766670094608,0.68156063,836.43,835.61,1.79182466]
[1766670094811,0.68156063,836.42,835.61,1.79182466]
[1766670095012,0.68156063,836.41,835.61,1.79182466]